[Event "French Top 16-A 2024"]
[Site "Chartres"]
[Date "2024.06.01"]
[Round "2.8"]
[White "Cochet, Caroline"]
[Black "Benitah, Yohan"]
[Result "0-1"]
[ECO "B26"]
[WhiteElo "1972"]
[BlackElo "2342"]
[Annotator "RC"]
[PlyCount "62"]
[EventDate "2024.06.01"]
[EventType "team-tourn"]
[EventCountry "FRA"]
[SourceTitle "playchess.com"]
[Source "ChessBase"]
[SourceQuality "1"]
[TimeControl "40/5400+30:1800+30"]

1. e4 {[%emt 0:00:02]} c5 {[%emt 0:00:28]} 2. Nf3 {[%emt 0:01:26]} d6 {[%emt 0:00:11]} 3. d3 {[%emt 0:03:02]} Nc6 {[%emt 0:01:15]} 4. g3 {[%emt 0:01:47]} g6 {[%emt 0:00:10]} 5. Bg2 {[%emt 0:04:24]} Bg7 {[%emt 0:00:25]} 6. O-O {[%emt 0:01:15]} e5 {[%emt 0:01:38]} 7. Nc3 {[%emt 0:09:43]} Nge7 {[%emt 0:00:36]} 8. Be3 {[%emt 0:05:31]} O-O {[%emt 0:03:20]} 9. Qd2 {[%emt 0:03:35]} Nd4 {[%emt 0:18:58]} 10. Bh6 {[%emt 0:13:26]} f6 {[%emt 0:05:18]} 11. Bxg7 {[%emt 0:05:49]} Kxg7 {[%emt 0:00:35]} 12. h3 {[%emt 0:02:02]} Nxf3+ {[%emt 0:01:00]} 13. Bxf3 {[%emt 0:00:09]} Bxh3 {[%emt 0:00:06]} 14. Bg2 {[%emt 0:02:41]} Be6 {[%emt 0:02:03]} 15. Rae1 {[%emt 0:02:50]} Qb6 {[%emt 0:02:06]} 16. b3 {[%emt 0:07:48]} Qb4 {[%emt 0:04:46]} 17. Nb1 {[%emt 0:04:00]} a5 {[%emt 0:00:58]} 18. a4 {[%emt 0:03:08]} b5 {[%emt 0:06:36]} 19. Qxb4 {[%emt 0:02:00]} cxb4 {[%emt 0:00:33]} 20. axb5 {[%emt 0:00:58]} Rfc8 {[%emt 0:00:24]} 21. Rc1 {[%emt 0:01:40]} Rc5 {[%emt 0:05:01]} 22. c4 {[%emt 0:01:07]} bxc3 {[%emt 0:00:14]} 23. Nxc3 {[%emt 0:00:20]} Bxb3 {[%emt 0:00:33]} 24. Bh3 {[%emt 0:01:13]} a4 {[%emt 0:02:40]} 25. b6 {[%emt 0:04:41]} Rb8 {[%emt 0:01:45]} 26. Bd7 {[%emt 0:00:43]} a3 {[%emt 0:02:51]} 27. Na4 {[%emt 0:02:53]} Bxa4 {[%emt 0:10:26]} 28. Rxc5 {[%emt 0:02:46]} dxc5 {[%emt 0:00:05]} 29. Bxa4 {[%emt 0:00:04]} Nc8 {[%emt 0:00:14]} 30. Ra1 {[%emt 0:01:11]} Nxb6 {[%emt 0:00:35]} 31. Rxa3 {[%emt 0:01:01]} Ra8 {[%emt 0:00:20]} 0-1

[Event "French Top 16-A 2024"]
[Site "Chartres"]
[Date "2024.06.01"]
[Round "2.9"]
[White "Esipenko, Andrey"]
[Black "Alonso Rosell, Alvar"]
[Result "1/2-1/2"]
[ECO "B92"]
[WhiteElo "2704"]
[BlackElo "2556"]
[Annotator "TA"]
[PlyCount "67"]
[EventDate "2024.06.01"]
[EventType "team-tourn"]
[EventCountry "FRA"]
[SourceTitle "playchess.com"]
[Source "ChessBase"]
[SourceQuality "1"]
[TimeControl "40/5400+30:1800+30"]

{[%evp 16,67,11,0,4,8,8,12,0,8,18,26,16,25,29,7,16,18,21,22,27,0,0,0,0,0,14,14,16,11,31,-46,-56,-46,-48,-43,-45,-54,-48,-54,-52,-52,-41,-54,-31,-37,0,-27,-34,-42,-47,-34,0,-47]} 1. e4 {[%emt 0:16:22]} c5 {[%emt 0:00:04]} 2. Nf3 {[%emt 0:00:20]} d6 {[%emt 0:00:06]} 3. d4 {[%emt 0:02:03]} cxd4 {[%emt 0:00:18]} 4. Nxd4 {[%emt 0:00:02]} Nf6 {[%emt 0:00:11]} 5. Nc3 {[%emt 0:00:03]} a6 {[%emt 0:00:04]} 6. Be2 {[%emt 0:00:05]} e5 {[%emt 0:00:06]} 7. Nb3 {[%emt 0:00:04]} Be7 {[%emt 0:00:13]} 8. O-O {[%emt 0:01:45]} O-O {[%emt 0:00:18]} 9. Re1 {[%emt 0:00:14]} Be6 {[%emt 0:00:11]} 10. Bf3 {[%emt 0:00:15]} Nbd7 {[%emt 0:00:07]} 11. a4 {[%emt 0:00:21][%cal Ba2a4,Ba4a5][%mdl 32]} Rc8 {[%emt 0:00:15]} 12. Be3 {[%emt 0:02:36]} h5 {[%emt 0:05:06]} 13. h3 {[%emt 0:10:13]} g6 {[%emt 0:01:08]} 14. a5 {[%emt 0:00:28]} Nh7 {[%emt 0:02:17]} 15. Nd2 {[%emt 0:03:07][%cal Bb3d2,Bd2f1,Bf1e3][%mdl 32]} Bg5 {[%emt 0:25:03]} 16. Nf1 {[%emt 0:00:29]} Ndf6 {[%emt 0:02:19]} 17. Bb6 {[%emt 0:06:42]} Qd7 {[%emt 0:00:55]} 18. Ne3 {[%emt 0:01:28]} Bf4 {[%emt 0:01:14]} 19. Ne2 {[%emt 0:21:22]} Bh6 {[%emt 0:04:29]} 20. h4 {[%emt 0:03:12]} Kh8 {[%emt 0:09:43]} 21. Ra3 {[%emt 0:01:28]} Qe7 {[%emt 0:10:24]} 22. Nc3 $1 {[%emt 0:05:32]} Rg8 {[%emt 0:01:22]} 23. Ncd5 {[%emt 0:02:23]} (23. g3 $14) 23... Bxd5 {[%emt 0:04:53]} 24. Nxd5 {[%emt 0:00:13]} Nxd5 {[%emt 0:00:08]} 25. Qxd5 {[%emt 0:00:04]} Rxc2 {[%emt 0:00:58]} 26. Rd3 {[%emt 0:01:59]} Rc6 $1 {[%emt 0:04:19]} 27. Red1 {[%emt 0:01:25]} Rgc8 {[%emt 0:08:10]} 28. g3 {[%emt 0:01:27]} Nf6 {[%emt 0:02:01]} 29. Qb3 {[%emt 0:00:04]} Nd7 {[%emt 0:08:25]} 30. Ba7 {[%emt 0:00:21]} Nf6 {[%emt 0:03:19]} 31. Kg2 {[%emt 0:00:41]} Kg8 {[%emt 0:02:41]} 32. Bb6 {[%emt 0:01:14]} Nd7 {[%emt 0:00:19]} 33. Ba7 {[%emt 0:00:11]} Nf6 {[%emt 0:00:17]} 34. Bb6 {[%emt 0:02:56] Weighted Error Value: White=0.10 (very precise) /Black=0.05 (flawless) .  Mistake:       	White=1     	---        Inaccurate:     	White=2     	Black=1      OK:         	White=9     	Black=9      Best:        	---       	Black=1      Strong:       	White=1     	Black=1} 1/2-1/2

[Event "French Top 16-A 2024"]
[Site "Chartres"]
[Date "2024.06.01"]
[Round "2.9"]
[White "Travadon, Loic"]
[Black "Lupulescu, Constantin"]
[Result "1/2-1/2"]
[ECO "D00"]
[WhiteElo "2446"]
[BlackElo "2588"]
[Annotator "TA"]
[PlyCount "29"]
[EventDate "2024.06.01"]
[EventType "team-tourn"]
[EventCountry "FRA"]
[SourceTitle "playchess.com"]
[Source "ChessBase"]
[SourceQuality "1"]
[TimeControl "40/5400+30:1800+30"]

{[%evp 9,29,6,28,15,14,14,9,16,19,7,7,25,66,74,70,72,79,66,83,93,90,17]} 1. d4 {[%emt 0:00:03]} Nf6 {[%emt 0:00:07]} 2. Bf4 {[%emt 0:00:10]} d5 {[%emt 0:00:09]} 3. e3 {[%emt 0:00:07]} c5 {[%emt 0:01:07]} 4. Nc3 {[%emt 0:00:24]} a6 {[%emt 0:04:25]} 5. dxc5 {[%emt 0:00:18]} Nc6 {[%emt 0:02:05]} 6. Nf3 {[%emt 0:00:50] Prevents e5.} e6 {[%emt 0:08:18]} 7. Na4 {[%emt 0:06:52] aiming for a3.} Nd7 {[%emt 0:11:54]} 8. c4 {[%emt 0:05:30] The position is equal.} Nxc5 {[%emt 0:04:11]} 9. Nxc5 {[%emt 0:01:24]} Bxc5 {[%emt 0:00:51]} 10. a3 {[%emt 0:02:17]} d4 {[%emt 0:12:28]} 11. b4 {[%emt 0:03:51]} Ba7 {[%emt 0:03:20]} 12. exd4 {[%emt 0:05:09] White is more active.} Nxd4 {[%emt 0:02:12] [#]} 13. Be5 {[%emt 0:00:25][%csl LRd4,LRg7][%cal Re5d4] Inhibits Qf6.} Nxf3+ {[%emt 0:02:00]} 14. Qxf3 {[%emt 0:00:08]} Qg5 {[%emt 0:03:57]} 15. Qg3 {[%emt 0:05:39] Weighted Error Value: White=0.02 (flawless) /Black=0.09 (flawless) .  Mistake:       	White=1     	---        Inaccurate:     	---       	Black=1      OK:         	White=6     	Black=3} (15. Bc3 $16) 1/2-1/2

[Event "French Top 16-A 2024"]
[Site "Chartres"]
[Date "2024.06.01"]
[Round "2.10"]
[White "Parligras, Mircea-Emilian"]
[Black "Willems, Niels"]
[Result "0-1"]
[ECO "D41"]
[WhiteElo "2561"]
[BlackElo "2329"]
[Annotator "TA"]
[PlyCount "140"]
[EventDate "2024.06.01"]
[EventType "team-tourn"]
[EventCountry "FRA"]
[SourceTitle "playchess.com"]
[Source "ChessBase"]
[SourceQuality "1"]
[TimeControl "40/5400+30:1800+30"]

{[%evp 52,140,0,0,0,0,0,0,0,-10,-9,-9,-7,-8,-8,-10,0,0,0,-9,-7,-9,0,0,0,0,0,0,9,0,0,0,10,10,10,10,19,13,21,21,91,76,81,82,83,86,329,309,391,377,388,393,399,391,756,865,616,62,62,0,0,0,0,0,0,0,0,0,0,0,0,-177,-177,-1008,-966,-956,-864,-29970,-29970,-29971,-29971,-29972,-29974,-29978,-29979,-29979,-29981,-29982,-29983,-29983,-29984]} 1. d4 {[%emt 0:00:04]} Nf6 {[%emt 0:00:06]} 2. c4 {[%emt 0:00:05]} e6 {[%emt 0:00:04]} 3. Nf3 {[%emt 0:00:14]} d5 {[%emt 0:00:05]} 4. Nc3 {[%emt 0:00:06]} c5 {[%emt 0:00:08]} 5. cxd5 {[%emt 0:00:34]} Nxd5 {[%emt 0:00:06]} 6. e4 {[%emt 0:00:50]} Nxc3 {[%emt 0:00:05]} 7. bxc3 {[%emt 0:00:04]} cxd4 {[%emt 0:00:06]} 8. cxd4 {[%emt 0:00:08]} Bb4+ {[%emt 0:00:03]} 9. Bd2 {[%emt 0:00:11]} Bxd2+ {[%emt 0:00:04]} 10. Qxd2 {[%emt 0:00:07]} O-O {[%emt 0:00:11]} 11. Bc4 {[%emt 0:01:19]} Nd7 {[%emt 0:00:21]} 12. O-O {[%emt 0:00:36]} b6 {[%emt 0:00:09]} 13. Rad1 {[%emt 0:00:26]} Bb7 {[%emt 0:00:09]} 14. Rfe1 {[%emt 0:00:09]} Nf6 {[%emt 0:03:13]} 15. Qd3 {[%emt 0:18:55]} Rc8 {[%emt 0:02:25]} 16. Nd2 {[%emt 0:04:45]} Qc7 {[%emt 0:02:52]} 17. f3 {[%emt 0:09:59]} Rfd8 {[%emt 0:02:55]} 18. Bb3 {[%emt 0:00:20]} h6 {[%emt 0:21:44]} 19. Nf1 {[%emt 0:03:21]} Qc3 {[%emt 0:04:32]} 20. Qxc3 {[%emt 0:06:26]} Rxc3 {[%emt 0:00:10]} 21. Ne3 {[%emt 0:01:07]} Kf8 {[%emt 0:03:28]} 22. Kf2 {[%emt 0:09:11]} Ne8 {[%emt 0:08:54]} 23. Re2 {[%emt 0:04:40]} Nd6 {[%emt 0:05:42]} 24. d5 {[%emt 0:04:02]} exd5 {[%emt 0:05:10]} 25. Bxd5 {[%emt 0:01:48]} Bxd5 {[%emt 0:05:03]} 26. Rxd5 {[%emt 0:01:10]} Nb7 {[%emt 0:01:12]} 27. Rxd8+ {[%emt 0:14:09]} Nxd8 {[%emt 0:00:04]} 28. Rd2 {[%emt 0:00:10]} Ne6 {[%emt 0:03:34]} 29. Nf5 {[%emt 0:00:52]} h5 {[%emt 0:01:31]} 30. h4 {[%emt 0:02:55]} g6 {[%emt 0:02:21]} 31. Ne3 {[%emt 0:01:14]} Ra3 {[%emt 0:02:50]} 32. Nd5 {[%emt 0:01:39]} Nc5 {[%emt 0:00:55]} 33. Ke2 {[%emt 0:01:08]} Na4 {[%emt 0:08:17]} 34. Rc2 {[%emt 0:00:41]} Nc5 {[%emt 0:00:02]} 35. Nc3 {[%emt 0:05:29]} Ne6 {[%emt 0:01:47]} 36. Kd2 {[%emt 0:03:23]} Nf4 {[%emt 0:01:13]} 37. g3 {[%emt 0:00:21]} Ne6 {[%emt 0:00:05]} 38. Rb2 {[%emt 0:02:56]} Kg7 {[%emt 0:15:21]} 39. Rb4 {[%emt 0:00:39]} Ra5 {[%emt 0:01:50]} 40. a4 {[%emt 0:00:45]} Rc5 {[%emt 0:01:09]} 41. Kd3 {[%emt 0:10:26]} Rc7 {[%emt 0:02:32]} 42. Rc4 {[%emt 0:00:11]} Rd7+ {[%emt 0:05:07]} 43. Ke3 {[%emt 0:00:15]} a5 {[%emt 0:14:52]} 44. f4 {[%emt 0:05:40]} Rb7 {[%emt 0:01:16]} 45. Rc6 {[%emt 0:06:49]} Nc7 {[%emt 0:02:50]} (45... Nc5 $11 {keeps the balance.}) 46. Nb5 {[%emt 0:01:10]} Nxb5 {[%emt 0:03:33]} 47. axb5 {[%emt 0:00:03]} a4 {[%emt 0:00:45]} 48. Kd3 {[%emt 0:00:14]} a3 $2 {[%emt 0:00:55]} (48... f6 $16 {keeps fighting.}) 49. Kc2 $18 {[%emt 0:00:07]} a2 {[%emt 0:00:21]} 50. Kb2 {[%emt 0:00:05]} Ra7 {[%emt 0:00:01]} 51. Ka1 $1 {[%emt 0:00:09]} (51. Rxb6 a1=Q+ (51... a1=B+ $2 52. Kc2 $19) 52. Kc2 Ra2+ 53. Kd3 Qd1+ 54. Kc3 Rc2+ 55. Kb4 Qb1+ 56. Ka5 Ra2#) 51... Ra3 {[%emt 0:00:37]} 52. Rxb6 {[%emt 0:00:07]} Rxg3 $2 {[%emt 0:00:05]} (52... Ra4 53. Rc6 Rxe4) 53. Rc6 $18 {[%emt 0:03:32]} (53. Kxa2 Rg4 $16) 53... Re3 {[%emt 0:01:12]} 54. b6 $2 {[%emt 0:07:10]} (54. Kxa2 Rxe4 55. b6 Rxf4 $16) (54. e5 $18) 54... Rxe4 $14 {[%emt 0:00:12]} 55. Rc2 {[%emt 0:02:08]} (55. Kxa2 $14 Rxf4 56. Ka3) 55... Re8 $11 {[%emt 0:01:40]} (55... Rxf4 56. b7 Rb4 (56... Rxh4 $2 57. b8=Q $18) 57. Rb2 $18) (55... Rb4 $2 56. Rb2 Re4 (56... Rxf4 $2 57. b7 $18) (56... Rxb2 57. Kxb2 g5 58. b7 $18) 57. b7 $18 (57. Rxa2 Re8 $11)) 56. Kxa2 {[%emt 0:00:14]} Kf6 {[%emt 0:00:18]} 57. Ka3 {[%emt 0:02:23]} (57. b7 $5 Rb8 $8 58. Rc7 $11) 57... Rb8 {[%emt 0:00:20]} 58. Rb2 {[%emt 0:00:11]} Kf5 {[%emt 0:00:04]} 59. Ka4 {[%emt 0:00:37]} Kxf4 {[%emt 0:00:22]} 60. Kb5 {[%emt 0:00:02]} Kg3 {[%emt 0:01:06]} 61. Rb4 $2 {[%emt 0:00:37]} (61. Kc6 $11) 61... f5 $19 {[%emt 0:01:43]} 62. Kc6 $2 {[%emt 0:00:52]} (62. Rd4) 62... f4 $19 {[%emt 0:00:01]} 63. Kc7 {[%emt 0:00:19]} Rf8 {[%emt 0:00:02]} 64. b7 {[%emt 0:00:10] [#]} f3 $1 {[%emt 0:00:27]} (64... Kxh4 65. Rxf4+ Rxf4 66. b8=Q $18) 65. b8=Q {[%emt 0:01:14]} Rxb8 {[%emt 0:00:01]} 66. Rxb8 {[%emt 0:00:10]} f2 {[%emt 0:00:13]} 67. Rf8 {[%emt 0:00:07]} Kg2 $1 {[%emt 0:00:20]} ({Worse is} 67... Kxh4 68. Rxf2 Kg3 69. Rf6 $11) 68. Kd6 {[%emt 0:00:03]} f1=Q {[%emt 0:00:11]} (68... f1=B 69. Ke5 Be2 70. Rd8 $16) 69. Rxf1 {[%emt 0:00:04]} Kxf1 {[%emt 0:00:04]} 70. Ke5 {[%emt 0:00:03]} Kg2 {[%emt 0:00:07]} 0-1

[Event "French Top 16-A 2024"]
[Site "Chartres"]
[Date "2024.06.01"]
[Round "2.10"]
[White "Sohier, Julien"]
[Black "Moussard, Jules"]
[Result "0-1"]
[ECO "B48"]
[WhiteElo "2214"]
[BlackElo "2611"]
[Annotator "RC"]
[PlyCount "44"]
[EventDate "2024.06.01"]
[EventType "team-tourn"]
[EventCountry "FRA"]
[SourceTitle "playchess.com"]
[Source "ChessBase"]
[SourceQuality "1"]
[TimeControl "40/5400+30:1800+30"]

1. e4 {[%emt 0:00:01]} c5 {[%emt 0:00:34]} 2. Nc3 {[%emt 0:00:36]} e6 {[%emt 0:00:08]} 3. Nf3 {[%emt 0:00:06]} Nc6 {[%emt 0:00:07]} 4. d4 {[%emt 0:02:07]} cxd4 {[%emt 0:00:07]} 5. Nxd4 {[%emt 0:00:03]} Qc7 {[%emt 0:00:09]} 6. Be3 {[%emt 0:00:13]} a6 {[%emt 0:00:18]} 7. g4 {[%emt 0:00:17]} h6 {[%emt 0:06:23]} 8. Qd2 {[%emt 0:04:15]} Nf6 {[%emt 0:07:52]} 9. f3 {[%emt 0:03:47]} b5 {[%emt 0:00:51]} 10. Nxc6 {[%emt 0:01:45]} dxc6 {[%emt 0:12:30]} 11. e5 {[%emt 0:17:39]} Qxe5 {[%emt 0:04:23]} 12. O-O-O {[%emt 0:00:18]} Qc7 {[%emt 0:22:21]} 13. Bf4 {[%emt 0:05:40]} Qb6 {[%emt 0:00:15]} 14. g5 {[%emt 0:25:37]} hxg5 {[%emt 0:02:23]} 15. Bxg5 {[%emt 0:00:03]} Nd5 {[%emt 0:07:39]} 16. Nxd5 {[%emt 0:00:49]} cxd5 {[%emt 0:00:08]} 17. Bd3 {[%emt 0:01:56]} Bd7 {[%emt 0:01:11]} 18. Rhe1 {[%emt 0:02:49]} Bd6 {[%emt 0:03:41]} 19. h4 {[%emt 0:12:13]} Qc7 {[%emt 0:01:58]} 20. Kb1 {[%emt 0:06:34]} f6 {[%emt 0:07:08]} 21. Bxb5 {[%emt 0:06:11]} axb5 {[%emt 0:00:54]} 22. Qxd5 {[%emt 0:00:36]} Ke7 {[%emt 0:00:30]} 0-1

[Event "French Top 16-A 2024"]
[Site "Chartres"]
[Date "2024.06.01"]
[Round "2.11"]
[White "Movsesian, Sergei"]
[Black "Ramirez Garcia, Jorge Alberto"]
[Result "1-0"]
[ECO "D78"]
[WhiteElo "2618"]
[BlackElo "2266"]
[Annotator "TA"]
[PlyCount "143"]
[EventDate "2024.06.01"]
[EventType "team-tourn"]
[EventCountry "FRA"]
[SourceTitle "playchess.com"]
[Source "ChessBase"]
[SourceQuality "1"]
[TimeControl "40/5400+30:1800+30"]

{[%evp 18,143,30,26,30,30,27,31,44,24,40,37,47,4,15,-43,-45,-43,-44,-123,-125,-160,-168,-182,-173,-197,-220,-208,-43,-24,-20,-50,-7,-7,-12,-12,0,0,0,-14,41,46,50,50,70,56,75,39,88,56,70,61,54,61,81,81,81,81,88,86,104,102,104,97,102,83,86,78,79,84,84,77,97,95,103,88,89,87,89,84,74,50,77,75,116,39,109,122,125,68,55,9,36,35,138,69,96,68,74,39,41,11,13,13,14,14,462,449,767,801,12687,12329,29960,10703,29966,29968,29968,29965,29968,29971,29971,29970,29981,29982,29984,29985,29985,29986]} 1. Nf3 {[%emt 0:00:08]} d5 {[%emt 0:05:13]} 2. g3 {[%emt 0:00:06]} c6 {[%emt 0:01:17]} 3. Bg2 {[%emt 0:00:45]} g6 {[%emt 0:01:21]} 4. c4 {[%emt 0:00:42]} Bg7 {[%emt 0:01:10]} 5. O-O {[%emt 0:04:08]} Nf6 {[%emt 0:01:28]} 6. d4 {[%emt 0:01:20]} O-O {[%emt 0:00:14]} 7. Qa4 {[%emt 0:00:20]} Ne4 {[%emt 0:10:08]} 8. Bf4 {[%emt 0:03:23]} b5 {[%emt 0:05:28]} 9. cxb5 {[%emt 0:00:20]} cxb5 {[%emt 0:00:07]} 10. Qb3 {[%emt 0:05:03]} Nc6 {[%emt 0:09:11]} 11. Qxb5 {[%emt 0:14:43]} Nxd4 {[%emt 0:00:10]} 12. Nxd4 {[%emt 0:00:05]} Bxd4 {[%emt 0:00:18]} 13. Nc3 {[%emt 0:00:32]} Bxc3 {[%emt 0:11:39]} 14. bxc3 {[%emt 0:01:23]} Be6 {[%emt 0:13:46]} 15. Qb4 {[%emt 0:27:40]} Rc8 {[%emt 0:05:20]} 16. Rac1 {[%emt 0:00:35]} ({White should try} 16. Bxe4 $11 Rc4 17. Qb2 Rxe4 18. Qb5) 16... Rc4 $15 {[%emt 0:01:51]} 17. Qa3 {[%emt 0:01:52]} Qd7 {[%emt 0:02:49]} 18. Be5 {[%emt 0:06:30]} (18. Rfd1 $15) 18... Nd2 $1 $17 {[%emt 0:02:39]} 19. Rfd1 {[%emt 0:03:10]} Ra4 {[%emt 0:00:30]} 20. Qc5 {[%emt 0:00:30]} Rc8 $1 {[%emt 0:01:49]} 21. Qe3 {[%emt 0:01:55]} Nc4 {[%emt 0:00:33]} 22. Qf4 {[%emt 0:00:05]} Nxe5 $2 {[%emt 0:08:51]} (22... Nb2 $1 $19 23. Rd4 f6 (23... Rxa2 $2 {loses.} 24. Qh6 $18) 24. Bxf6 (24. Rxa4 $2 fxe5 $19) 24... exf6 25. Qxf6 Re8 (25... Rxa2 26. Rd2 $17)) 23. Qxe5 $15 {[%emt 0:00:12]} Qc7 {[%emt 0:00:43]} 24. Qe3 {[%emt 0:02:43]} (24. Qxc7 {simplifies} Rxc7 25. Bxd5 Bxd5 26. Rxd5 Rxa2 27. Kf1) 24... Rxa2 {[%emt 0:01:36]} 25. Bxd5 {[%emt 0:01:16]} Bxd5 {[%emt 0:00:10]} 26. Rxd5 {[%emt 0:00:04]} Qc4 {[%emt 0:08:49]} 27. Re5 {[%emt 0:02:56]} e6 {[%emt 0:00:40]} 28. Re4 {[%emt 0:00:52]} Qc5 {[%emt 0:02:51]} (28... Qb3 $11) 29. Rxe6 $1 $14 {[%emt 0:02:07]} Qxe3 {[%emt 0:03:42]} 30. Rxe3 {[%emt 0:00:11]} Kf8 {[%emt 0:00:11]} 31. Kg2 {[%emt 0:01:52]} Ra3 {[%emt 0:00:48]} 32. Rd3 {[%emt 0:01:34]} Rc4 {[%emt 0:00:25]} (32... Ra2 $14 {might be stronger.}) 33. Kf3 {[%emt 0:02:00]} h5 {[%emt 0:00:13]} 34. h4 {[%emt 0:01:35]} Ke7 {[%emt 0:00:45]} 35. Ke3 {[%emt 0:00:32]} Rc6 {[%emt 0:00:29]} 36. Rc2 {[%emt 0:01:50]} Re6+ {[%emt 0:00:27]} 37. Kd2 {[%emt 0:01:31]} Rf6 {[%emt 0:00:38]} 38. f3 {[%emt 0:13:00]} Rb6 {[%emt 0:00:10]} 39. c4 {[%emt 0:00:00]} Ra4 {[%emt 0:00:27]} 40. c5 {[%emt 0:00:00]} Rc6 {[%emt 0:00:17]} 41. e4 {[%emt 0:23:28]} Ra5 {[%emt 0:07:02]} 42. Rd5 {[%emt 0:00:00]} Rb5 {[%emt 0:01:09]} 43. Kd3 {[%emt 0:00:00]} a5 {[%emt 0:00:06]} 44. Rc3 {[%emt 0:00:00]} Rb1 {[%emt 0:02:45]} 45. Re5+ {[%emt 0:00:00]} Kd7 {[%emt 0:03:27]} 46. Kc2 {[%emt 0:00:00]} Rb4 {[%emt 0:06:27]} 47. Rd3+ {[%emt 0:00:00]} Kc8 {[%emt 0:01:37]} 48. Kc3 {[%emt 0:00:00]} Rc7 {[%emt 0:02:34]} 49. g4 {[%emt 0:08:21]} hxg4 {[%emt 0:00:46]} 50. fxg4 {[%emt 0:00:01]} f6 {[%emt 0:01:06]} 51. Re8+ {[%emt 0:00:17]} Kb7 {[%emt 0:00:07]} 52. Rd5 {[%emt 0:00:13]} Rb5 {[%emt 0:05:17] [#]} 53. Kd4 {[%emt 0:02:03]} ({Better is} 53. Rf8 $1 $16 {[%cal Rf8f6]}) 53... Rb4+ $14 {[%emt 0:00:22]} 54. Kd3 {[%emt 0:00:36]} (54. Ke3 $14 {is superior.}) 54... a4 {[%emt 0:01:10]} 55. Rdd8 {[%emt 0:00:15]} Rb5 {[%emt 0:02:49]} (55... Kc6 $1 $14) 56. Ra8 {[%emt 0:00:59]} (56. Rf8 $16) 56... Rbxc5 $14 {[%emt 0:00:36]} 57. Reb8+ {[%emt 0:01:22]} Kc6 {[%emt 0:00:12]} 58. Rxa4 {[%emt 0:00:18]} Kd6 {[%emt 0:02:07]} 59. Rg8 {[%emt 0:01:32]} Ke5 $1 {[%emt 0:00:26]} 60. Re8+ {[%emt 0:00:03]} Kf4 {[%emt 0:00:37]} 61. e5+ {[%emt 0:00:03]} Kf3 $2 {[%emt 0:00:14][%mdl 8192]} (61... Kg3 $11 {and Black has nothing to worry.}) 62. exf6 $18 {[%emt 0:00:32]} Rd5+ {[%emt 0:00:46]} (62... Kg3 $142 63. h5 gxh5) 63. Rd4 $18 {[%emt 0:00:05]} Rxd4+ {[%emt 0:00:06]} 64. Kxd4 {[%emt 0:00:07]} Kxg4 {[%emt 0:00:07]} 65. Re7 {[%emt 0:01:36]} Rc1 {[%emt 0:00:27]} 66. Re4+ {[%emt 0:00:50]} Kh5 {[%emt 0:01:05]} 67. Ke5 {[%emt 0:01:13]} g5 {[%emt 0:00:35]} 68. hxg5 {[%emt 0:00:21]} Kg6 {[%emt 0:00:42]} 69. Rf4 {[%emt 0:00:12]} Rc7 {[%emt 0:00:27] [#]} 70. Ke6 $1 {[%emt 0:00:29]} Rf7 {[%emt 0:00:34]} 71. Rf1 {[%emt 0:00:23]} Ra7 {[%emt 0:00:28]} 72. f7 {[%emt 0:00:18]} 1-0